Cogmind - Beta 14 @@@ ROGUE MODE // 2024.09.09 @ 18:15:18 Player: BionicBot Result: Destroyed by G-67 Veteran with Plasma Rifle Performance ------------- Evolutions (6) 3000 Regions Visited (20) 4000 Robots Destroyed (197) 985 Value Destroyed (6358) 6358 Prototype IDs (38) 760 Alien Tech Used (0) 0 Bonus (2035) 2035 TOTAL SCORE: 17138 Bonus ------- High Alert Combat Kills 508 Follower Combat Kills 60 Met Data Miner 300 Met Imprinter 300 Met Warlord at Base 500 MAIN.C Attacked Warlord 500 Friendly Fire -133 Cogmind --------- Core Integrity 0/1150 Matter 199/300 Energy 5/100 System Corruption 0% Temperature Cool (30) Movement Core (150) Ox2 Location -4/Upper Caves Parts ------- > --- POWER (2) -------- (None) > --- PROPULSION (4) --- (None) > --- UTILITY (9) ------ Advanced Visual Processing Unit Advanced Targeting Computer Experimental Targeting Computer Experimental Target Analyzer Armor Integrity Analyzer > --- WEAPON (4) ------- Magnetic Acceleration Cannon > --- INVENTORY (5) ---- Antimatter Reactor Myomer Leg Experimental Energy Well (600) Advanced Focal Shield Phasing AFG Peak State ------------ > --- POWER ------------ Vortex Chain Reactor > --- PROPULSION ------- Armored Leg Armored Leg Experimental Myomer Leg Experimental Myomer Leg > --- UTILITY ---------- Large Storage Unit Advanced Visual Processing Unit 0b10 Decoder Chip [Generic] Advanced Targeting Computer Experimental Targeting Computer Experimental Target Analyzer Makeshift Hacking Suite System Mapper System Purifier > --- WEAPON ----------- Helical Railgun Helical Railgun Helical Railgun Helical Railgun > --- INVENTORY -------- Fission Core Armored Leg Armored Leg Armored Leg Experimental Energy Well Advanced Sensor Array Armor Integrity Analyzer Improved Utility Shielding Advanced Focal Shield Improved Energy Mantle Phasing AFG Enhanced Gauss Cannon Ripper [Rating: 141] Favorites ----------- Power Fission Core Engine Cooled Ion Engine Power Core Fission Core Reactor Vortex Chain Reactor Propulsion Armored Leg Treads Advanced Medium Treads Leg Armored Leg Wheel Wheel Hover Unit Gravmag System Utility Hacking Suite Device Advanced Sensor Array Storage Large Storage Unit Processor Improved Signal Interpreter Hackware Hacking Suite Protection Hardened Medium Armor Plating Weapon Improved Assault Rifle Energy Gun Arc Projector Energy Cannon Phase Cannon Ballistic Gun Improved Assault Rifle Ballistic Cannon Battle Cannon Launcher Heavy Missile Launcher Special Weapon RU-N14's Throwing Claymores Impact Weapon Heavy Flail Slashing Weapon Ripper Build | -11 -10 -9 -8 -7 -7 -7 -7 -6 -6 -6 -6 -6 -5 -5 -5 -5 -5 -4 -4 -4 ------- Run | Yrd Mat Mat Mat Fac Low Low Zio Pro Fac Low Low Dat Pro Fac Upp Upp War Pro Fac Upp Slots Evolved 12 | . . 2 2 2 . . . . 2 . . . . 2 . . . . 2 . Power 1 | . . . . . . . . . . . . . . . . . . . 1 . Propulsion 2 | . . 1 . . . . . . 1 . . . . . . . . . . . Utility 7 | . . 1 1 2 . . . . 1 . . . . 2 . . . . . . Weapon 2 | . . . 1 . . . . . . . . . . . . . . . 1 . Parts Attached 224 | 8 11 50 15 22 6 6 5 . 23 2 7 . . 20 5 3 13 3 24 1 Power 23 | 1 1 9 1 2 . . . . 2 . 1 . . 1 2 . . . 3 . Engine 14 | 1 1 9 1 1 . . . . 1 . . . . . . . . . . . Core 7 | . . . . 1 . . . . 1 . 1 . . 1 2 . . . 1 . Reactor 2 | . . . . . . . . . . . . . . . . . . . 2 . Propulsion 56 | 2 3 15 4 9 . 1 . . 10 . . . . 2 . . 2 . 8 . Treads 1 | . . . . . . . . . . . . . . . . . . . 1 . Leg 49 | 2 3 15 4 6 . 1 . . 8 . . . . 2 . . 2 . 6 . Wheel 5 | . . . . 3 . . . . 1 . . . . . . . . . 1 . Hover 1 | . . . . . . . . . 1 . . . . . . . . . . . Flight . | . . . . . . . . . . . . . . . . . . . . . Utility 60 | 2 2 6 3 4 1 1 3 . 6 . 1 . . 12 1 1 6 2 8 1 Device 23 | 1 . 1 . 2 . . 2 . 4 . . . . 3 1 1 3 . 4 1 Storage 8 | 1 2 3 . . . . . . . . . . . 1 . . 1 . . . Processor 11 | . . . . 1 . . . . 1 . . . . 3 . . 1 2 3 . Hackware 5 | . . 1 1 1 . . . . . . . . . 1 . . 1 . . . Protection 13 | . . 1 2 . 1 1 1 . 1 . 1 . . 4 . . . . 1 . Artifact . | . . . . . . . . . . . . . . . . . . . . . Weapon 85 | 3 5 20 7 7 5 4 2 . 5 2 5 . . 5 2 2 5 1 5 . Energy Gun 11 | 2 2 5 . . . . . . 1 . 1 . . . . . . . . . Energy Cannon 3 | . . 1 . . . . . . 1 . . . . 1 . . . . . . Ballistic Gun 35 | 1 1 9 4 2 1 2 . . . . 1 . . 3 2 1 5 1 2 . Ballistic Cannon 15 | . . . 2 3 2 1 1 . 2 1 1 . . . . . . . 2 . Launcher 12 | . 2 5 . 1 2 . . . . 1 1 . . . . . . . . . Special Weapon 1 | . . . . . . . 1 . . . . . . . . . . . . . Impact Weapon 7 | . . . 1 1 . 1 . . 1 . 1 . . 1 . 1 . . . . Slashing Weapon 1 | . . . . . . . . . . . . . . . . . . . 1 . Piercing Weapon . | . . . . . . . . . . . . . . . . . . . . . Special Melee Weapon . | . . . . . . . . . . . . . . . . . . . . . Unidentified Prototypes 16 | . . 1 . 2 . . 3 . . . . . . 1 . . 7 1 1 . Corrupted Parts 1 | . . . . . . . . . . . . . . . . . . . 1 . System Corruption 1 | . . . . . . . . . . . . . . . . . . . 1 . Parts Lost 69 | . . 6 4 8 2 2 . . 8 1 9 . . 1 3 2 . 1 19 3 Power 5 | . . 1 . . . . . . 1 . 1 . . . 1 . . . 1 . Propulsion 19 | . . 1 2 5 . . . . 3 . . . . . . . . . 8 . Utility 22 | . . 2 1 1 1 1 . . 1 . 4 . . . 1 1 . 1 5 3 Weapon 23 | . . 2 1 2 1 1 . . 3 1 4 . . 1 1 1 . . 5 . Highest Loss Streak 11 | . . 3 2 5 1 1 . . 4 1 7 . . 1 3 2 . 1 11 3 To Critical Strikes . | . . . . . . . . . . . . . . . . . . . . . Average Slot Usage (%) 95 | . 99 95 99 94 99 99 100 100 97 100 89 80 80 96 99 99 97 99 74 63 Engine 2 | . 13 10 9 2 . . . . . . . . . . . . . . . . Core 3 | . . . . 4 7 7 7 7 5 6 5 6 6 5 4 5 5 5 . . Leg 24 | . 28 32 26 16 23 22 23 23 24 26 26 26 26 23 23 23 23 23 13 . Device 9 | . 14 8 9 15 7 7 10 7 11 13 9 6 6 5 5 12 11 8 4 10 Storage 7 | . 14 11 9 7 7 7 7 7 6 6 6 6 6 4 5 5 5 5 3 . Processor 10 | . . . . 1 7 7 7 7 13 13 9 6 6 13 23 21 21 24 27 36 Hackware 9 | . . 7 11 15 15 15 15 15 13 13 7 . . 4 5 5 9 11 6 . Protection 4 | . . 1 6 3 6 6 4 7 1 . 2 6 6 17 10 5 1 . . . Energy Gun 2 | . 13 3 . . . . . . . 6 5 6 6 2 . . . . . . Energy Cannon 1 | . . . . . . . . . 1 6 3 . . 2 4 . . . . . Ballistic Gun 11 | . 13 17 21 6 10 14 15 15 5 . 1 6 6 9 11 16 15 17 11 . Ballistic Cannon 3 | . . . 4 14 11 7 7 7 10 1 3 . . . . . . . . 5 Peak Build Rating 141 | 7 8 22 30 44 44 46 61 48 66 67 67 52 53 81 80 77 117 119 141 68 Average Rating 53 | 5 7 17 28 36 42 44 50 47 59 66 59 52 52 70 75 76 94 117 102 56 On Entrance 52 | . 7 8 22 30 44 43 46 47 48 66 67 52 52 53 75 77 70 117 118 60 Naked Turns . | . . . . . . . . . . . . . . . . . . . . . Heaviest Build 85 | 14 29 34 42 46 40 44 57 45 48 50 53 49 49 59 58 55 58 53 85 . Greatest Support 91 | 20 20 42 47 63 63 63 63 63 81 64 64 64 64 68 67 67 82 82 91 . Greatest Overweight (x) 5 | 3 1 1 1 3 . . . . . . . . . . . . . . 5 . Average Overweight (x) . | . . . . . . . . . . . . . . . . . . . . . Largest Inventory Capacity 15 | 8 15 15 15 15 15 15 15 15 15 15 15 15 15 15 15 15 15 15 15 5 Average Capacity 14 | 7 8 13 15 15 15 15 15 15 15 15 15 15 15 14 15 15 15 15 12 5 Most Carried 15 | 3 10 15 15 15 15 15 15 15 15 15 15 11 13 15 15 12 15 15 14 5 Average Carried 12 | 1 7 12 13 12 14 14 14 14 13 14 13 11 12 13 14 11 13 14 10 4 Final Capacity 15 | 8 10 15 15 15 15 15 15 15 15 15 15 15 15 15 15 15 15 15 5 5 Final Carried 15 | 3 10 15 15 14 14 15 15 15 15 15 11 11 13 15 11 11 15 14 5 5 Class Distribution -------------------- 24% | Mutant 16% | Hacker-Tank 15% | Hacker-Skirmisher 13% | Hacker-Gunner 10% | Skirmisher 8% | Tank 5% | Scavenger-Mutant 3% | Hacker-Mutant Dominant Class ---------------- Mutant | -10/Materials Mutant | -9/Materials Tank | -8/Materials Hacker-Tank | -7/Factory Hacker-Tank | -7/Lower Caves Hacker-Tank | -7/Lower Caves Hacker-Tank | -7/Zion Hacker-Tank | -6/Proximity Caves Hacker-Skirmisher | -6/Factory Hacker-Skirmisher | -6/Lower Caves Hacker-Skirmisher | -6/Lower Caves Mutant | -6/Data Miner Mutant | -5/Proximity Caves Tank | -5/Factory Skirmisher | -5/Upper Caves Skirmisher | -5/Upper Caves Hacker-Gunner | -5/Warlord Hacker-Gunner | -4/Proximity Caves Hacker-Gunner | -4/Factory Hacker-Gunner | -4/Upper Caves Resources | -11 -10 -9 -8 -7 -7 -7 -7 -6 -6 -6 -6 -6 -5 -5 -5 -5 -5 -4 -4 -4 ----------- Run | Yrd Mat Mat Mat Fac Low Low Zio Pro Fac Low Low Dat Pro Fac Upp Upp War Pro Fac Upp Matter Collected 6756 | 313 279 1129 662 549 396 163 77 55 754 246 265 . 108 191 385 138 140 197 709 . Remotely 1041 | . . . . . . . . . 671 246 124 . . . . . . . . . Salvage Created 7025 | 121 388 1793 1012 613 273 83 . 61 452 173 297 . 70 291 244 . . 122 1032 . Parts 442 | 4 50 117 59 31 19 3 . 2 40 9 11 . 2 19 9 . . 7 60 . Haulers Intercepted 10 | . 1 6 3 . . . . . . . . . . . . . . . . . Recyclers Shooed 7 | . 1 . 2 4 . . . . . . . . . . . . . . . . Parts Field Recycled . | . . . . . . . . . . . . . . . . . . . . . Retrieved Matter . | . . . . . . . . . . . . . . . . . . . . . Parts Self-Destructed 46 | . . . . . 16 . . 3 . 7 5 . . . 9 . . 6 . . Prevented 3 | . . . . . . . . . . . 2 . 1 . . . . . . . Kills | -11 -10 -9 -8 -7 -7 -7 -7 -6 -6 -6 -6 -6 -5 -5 -5 -5 -5 -4 -4 -4 ------- Run | Yrd Mat Mat Mat Fac Low Low Zio Pro Fac Low Low Dat Pro Fac Upp Upp War Pro Fac Upp Combat Hostiles Destroyed 137 | . 12 41 13 10 11 2 . 2 10 4 12 . 1 3 4 . . 2 10 . Melee 1 | . . . . 1 . . . . . . . . . . . . . . . . Guns 82 | . 6 29 12 2 5 1 . 2 4 1 2 . 1 2 4 . . 2 9 . Cannons 20 | . . 2 1 5 2 1 . . 6 1 . . . 1 . . . . 1 . AOE 32 | . 6 10 . . 4 . . . . 2 10 . . . . . . . . . Classes Destroyed 18 | 2 6 1 2 1 . 1 . 1 . . 1 . . 1 1 . . 1 . . Worker 10 | . 1 . 1 5 . . . . . . . . . . . . . . 3 . Builder 11 | . . . 3 . . . . . . . . . . . . . . . 8 . Tunneler 2 | 1 . . . . . . . . 1 . . . . . . . . . . . Hauler 10 | . 1 6 3 . . . . . . . . . . . . . . . . . Recycler 5 | 1 . . 2 1 . . . . . . . . . . . . . . 1 . Mechanic 1 | . . . . . . . . . . . . . . 1 . . . . . . Operator 4 | . 1 1 . . . . . . 2 . . . . . . . . . . . Drone 2 | . . . . . . . . 1 . . . . . . . . . 1 . . Watcher 16 | . 2 3 2 4 . . . . 1 . . . . 2 . . . . 2 . Swarmer 35 | . 6 11 4 . 7 . . . 3 . 4 . . . . . . . . . Grunt 56 | . 6 20 1 7 4 1 . . . 4 7 . . . 2 . . . 4 . Brawler 1 | . . . . . . . . . . . 1 . . . . . . . . . Duelist 1 | . . . . . . . . . . . . . . . 1 . . . . . Sentry 21 | . . 10 5 1 . . . 1 3 . . . . . 1 . . . . . Hunter 8 | . . . 3 . . . . . . . . . 1 1 . . . . 3 . Programmer 11 | . . . . 2 . . . . 4 . . . . 2 . . . . 3 . Behemoth 1 | . . . . . . . . . . . . . . . . . . 1 . . Wizard 1 | . . . . . . . . . 1 . . . . . . . . . . . Mutant 1 | . . . . . . 1 . . . . . . . . . . . . . . Best Kill Streak 8 | 2 3 6 5 7 4 1 . 1 4 4 8 . 1 3 2 . . 1 5 . Combat Bots Only 8 | . 3 4 5 2 4 1 . 1 3 4 8 . 1 2 2 . . 1 4 . Max Kills in Single Turn 4 | 1 3 4 2 2 2 1 . 1 2 2 3 . 1 1 2 . . 1 3 . Gunslinging 1 | . . 1 . . . . . . . . . . . . 1 . . . . . Exploded 3 | . 3 3 . . 1 . . . . 2 3 . . . . . . . . . Melee 1 | . . . . 1 . . . . . . . . . . . . . . . . Uniques/NPCs Destroyed . | . . . . . . . . . . . . . . . . . . . . . Combat | -11 -10 -9 -8 -7 -7 -7 -7 -6 -6 -6 -6 -6 -5 -5 -5 -5 -5 -4 -4 -4 -------- Run | Yrd Mat Mat Mat Fac Low Low Zio Pro Fac Low Low Dat Pro Fac Upp Upp War Pro Fac Upp Hostile Shots Fired 1132 | . 51 149 71 84 41 11 . 36 181 6 65 . 46 31 57 11 . 17 252 23 Missed 320 | . 14 34 28 14 14 1 . 17 68 2 12 . 15 8 15 5 . 6 64 3 Damage Taken 14407 | . 425 1591 692 1154 643 168 . 144 1493 73 1142 . 393 430 907 134 23 376 4275 344 Core 2434 | . 69 197 142 188 54 35 . 5 96 . 123 . . 59 172 25 . 103 1003 163 Absorbed by Shields 62 | . . . . . . . . . . . . . . . . . . . . 62 Redirected to Shielding 290 | . . . . . 26 15 . . . . . . . 110 31 45 . . 63 . Regen/Repaired (Parts) 1205 | . 81 171 . 79 . . . . 111 . . . . 309 . . 257 . 197 . Core Remaining (%) 70 | 100 72 50 74 . . . . 59 . . . . 74 . . . . 64 . . Volleys Fired 501 | 11 44 127 51 41 17 7 . 5 61 4 31 . 15 17 19 . . 12 38 1 Largest 4 | 2 2 2 3 3 3 3 . 3 3 3 3 . 2 3 3 . . 3 4 1 Hottest 196 | 60 60 108 103 103 103 87 . 85 168 187 196 . 78 173 151 . . 114 171 53 Shots Fired 1253 | 22 87 254 153 117 51 21 . 15 173 12 50 . 31 51 48 . . 36 131 1 Gun 951 | 22 84 233 149 35 22 14 . 10 72 4 25 . 31 48 40 . . 36 126 . Cannon 267 | . . 9 4 81 21 7 . 5 101 4 18 . . 3 8 . . . 5 1 Launcher 35 | . 3 12 . 1 8 . . . . 4 7 . . . . . . . . . Special . | . . . . . . . . . . . . . . . . . . . . . Kinetic 1025 | 11 44 191 153 116 43 21 . 15 162 . 13 . 16 32 40 . . 36 131 1 Thermal 152 | 11 40 51 . . . . . . 11 8 20 . . 3 8 . . . . . Explosive 35 | . 3 12 . 1 8 . . . . 4 7 . . . . . . . . . Electromagnetic 41 | . . . . . . . . . . . 10 . 15 16 . . . . . . Robot Hit Streak 19 | 5 8 18 13 6 7 8 . 10 7 9 19 . 6 5 11 . . 6 11 6 Robot Miss Streak 14 | 3 3 3 4 4 3 3 . 1 14 1 7 . 4 7 3 . . 7 5 . Penetration Max 2 | . . . . . . . . . . . . . . . . . . . 2 . Secondary Targets 11 | . . 2 3 . . . . . . . . . . . 2 . . . 4 . Max Gunslinging Chain 1 | . . 1 1 . . . . . . . . . . . 1 . . . 1 . Shots Hit Robots 765 | 13 54 175 91 78 20 13 . 11 77 8 30 . 16 33 35 . . 18 92 1 Core Hits 364 | 3 31 81 40 27 19 6 . 4 30 7 27 . 4 24 16 . . 6 39 . Critical Kills 8 | . . 1 . 1 . . . . . . . . . . 1 . . . 5 . Critical Parts Destroyed 17 | . . 2 . 1 . . . . 1 . . . . . 2 . . 2 9 . Critical Strikes 33 | . . 3 . 4 . . . . 2 . 1 . . . 3 . . 4 16 . Burn 1 | . . . . . . . . . . . 1 . . . . . . . . . Destroy 25 | . . 3 . . . . . . 1 . . . . . 3 . . 4 14 . Blast 5 | . . . . 2 . . . . 1 . . . . . . . . . 2 . Smash 2 | . . . . 2 . . . . . . . . . . . . . . . . Melee Attacks 51 | . . . 10 17 . 1 . . 1 . . . . 2 . 3 . . 17 . Impact 34 | . . . 10 17 . 1 . . 1 . . . . 2 . 3 . . . . Slashing 17 | . . . . . . . . . . . . . . . . . . . 17 . Piercing . | . . . . . . . . . . . . . . . . . . . . . Sneak Attacks 12 | . . . . 3 . . . . . . . . . . . . . . 9 . Combat Hostiles . | . . . . . . . . . . . . . . . . . . . . . Follow-up Attacks . | . . . . . . . . . . . . . . . . . . . . . Damage Inflicted 18526 | 160 975 3181 1394 2140 671 224 . 177 1808 412 1669 . 251 515 688 . . 543 3688 30 Guns 10567 | 160 629 2300 1276 399 197 160 . 120 617 68 193 . 190 395 483 . . 543 2837 . Cannons 3463 | . . 134 24 991 125 64 . 57 1161 62 327 . . 106 205 . . . 177 30 Explosions 2900 | . 328 731 . . 349 . . . . 282 1149 . 61 . . . . . . . Melee 1367 | . . . . 722 . . . . . . . . . . . . . . 645 . Ramming 229 | . 18 16 94 28 . . . . 30 . . . . 14 . . . . 29 . Kinetic 11970 | 82 342 1933 1300 1390 322 224 . 177 1535 . 238 . 87 270 483 . . 543 3014 30 Thermal 1957 | 78 287 587 . . . . . . 243 130 260 . 61 106 205 . . . . . Explosive 2753 | . 328 645 . . 349 . . . . 282 1149 . . . . . . . . . Electromagnetic 250 | . . . . . . . . . . . 22 . 103 125 . . . . . . Impact 722 | . . . . 722 . . . . . . . . . . . . . . . . Slashing 645 | . . . . . . . . . . . . . . . . . . . 645 . Piercing . | . . . . . . . . . . . . . . . . . . . . . Highest Corruption 20 | . 2 . . 3 5 5 5 . 4 4 20 20 20 2 2 2 2 . 3 . Average Corruption 4 | . 2 . . 2 3 5 5 . 1 4 11 20 20 2 2 2 2 . 1 . Corruption Purged 5 | . . . . . . . . . . . . . . . . . . . 5 . Corruption Blocked . | . . . . . . . . . . . . . . . . . . . . . Effects 208 | . 11 . . 10 16 14 1 . 26 15 24 4 43 11 22 10 . . 1 . Message Errors 54 | . 4 . . 2 4 3 . . 9 3 6 1 9 5 6 2 . . . . Matter Fused 52 | . 2 . . . 3 3 . . 5 5 8 2 15 . 7 2 . . . . Heat Flow Errors 19 | . 1 . . . 1 3 . . 1 3 . . 5 2 1 2 . . . . Energy Discharges 22 | . 1 . . 2 2 . . . 3 1 2 . 3 4 2 2 . . . . Parts Rejected 2 | . . . . 1 . 1 . . . . . . . . . . . . . . Parts Fused 2 | . . . . . 1 . . . . . . . . . 1 . . . . . Data Loss (minor) 34 | . 2 . . 1 2 2 1 . 5 2 4 1 8 . 3 2 . . 1 . Data Loss (major) 11 | . 1 . . 3 1 2 . . 2 1 1 . . . . . . . . . Misfires 5 | . . . . 1 1 . . . 1 . 1 . 1 . . . . . . . Alerts 3 | . . . . . . . . . . . 1 . 2 . . . . . . . Weapon Failures 4 | . . . . . 1 . . . . . 1 . . . 2 . . . . . Overload Shots . | . . . . . . . . . . . . . . . . . . . . . Overflow Damage 511 | . . 87 . 178 22 . . . 16 . 16 . . . . . . . 192 . Projectiles 63 | . . . . 39 . . . . 16 . . . . . . . . . 8 . Explosions 125 | . . 87 . . 22 . . . . . 16 . . . . . . . . . Melee 323 | . . . . 139 . . . . . . . . . . . . . . 184 . Knockbacks 34 | . . . . 14 5 . . . 10 . 3 . . . . . . . 1 1 Impact . | . . . . . . . . . . . . . . . . . . . . . Kinetic 32 | . . . . 14 4 . . . 9 . 3 . . . . . . . 1 1 Secondary 2 | . . . . . 1 . . . 1 . . . . . . . . . . . Self-Inflicted Damage 251 | . 24 17 . 6 66 . . . . . 138 . . . . . . . . . Shots 12 | . 1 3 . . 3 . . . . . 5 . . . . . . . . . Rammed 4 | . . . . 2 . . . . . . . . . . . . . . 2 . Targets Rammed 27 | . 3 3 7 4 . . . . 4 . . . . 3 . . . . 3 . Kicked 23 | . 3 3 7 2 . . . . 4 . . . . 3 . . . . 1 . Crushed . | . . . . . . . . . . . . . . . . . . . . . Highest Temperature 631 | . 222 309 56 631 230 235 . 126 338 365 377 . 321 389 341 203 . 94 413 . Average Temperature 105 | . 49 71 19 170 63 61 . 61 59 142 169 . 116 135 133 100 . 36 127 . Received Heat Transfer 2989 | . 135 561 72 504 36 54 . 42 174 36 378 . . . 333 45 . . 523 96 Effects 25 | . . . . 17 . . . . 1 . . . . 2 2 . . . 3 . Shutdowns 3 | . . . . 3 . . . . . . . . . . . . . . . . Energy Bleed 4 | . . . . 2 . . . . 1 . . . . 1 . . . . . . Interference 5 | . . . . 1 . . . . . . . . . . 1 . . . 3 . Matter Decay 3 | . . . . 2 . . . . . . . . . 1 . . . . . . Short Circuit 2 | . . . . 1 . . . . . . . . . . 1 . . . . . Damage (minor) 2 | . . . . 2 . . . . . . . . . . . . . . . . Damage (major) 5 | . . . . 5 . . . . . . . . . . . . . . . . Damage (core) 1 | . . . . 1 . . . . . . . . . . . . . . . . Siege Activations . | . . . . . . . . . . . . . . . . . . . . . Robots Corrupted 3 | . . . . 3 . . . . . . . . . . . . . . . . Combat Hostiles 2 | . . . . 2 . . . . . . . . . . . . . . . . Parts Fried 8 | . . . . 6 . . . 1 . . . . 1 . . . . . . . Impact Corruptions 5 | . . . . 5 . . . . . . . . . . . . . . . . Robots Melted . | . . . . . . . . . . . . . . . . . . . . . Combat Hostiles . | . . . . . . . . . . . . . . . . . . . . . Parts Melted 5 | . 1 4 . . . . . . . . . . . . . . . . . . Heat Transferred 3311 | 175 625 1092 . . . . . . 259 222 555 . 50 111 222 . . . . . Parts Sabotaged . | . . . . . . . . . . . . . . . . . . . . . Parts Stolen . | . . . . . . . . . . . . . . . . . . . . . Parts Stripped . | . . . . . . . . . . . . . . . . . . . . . Power Chain Reactions 1 | . . . . . . . . . . . . . 1 . . . . . . . Alert | -11 -10 -9 -8 -7 -7 -7 -7 -6 -6 -6 -6 -6 -5 -5 -5 -5 -5 -4 -4 -4 ------- Run | Yrd Mat Mat Mat Fac Low Low Zio Pro Fac Low Low Dat Pro Fac Upp Upp War Pro Fac Upp Peak Influence 888 | 10 137 888 593 342 . . . . 293 . . . . 68 . . . . 753 . Initial 628 | . 6 57 370 261 . . . . 20 . . . . 9 . . . . 628 . Average 270 | 3 68 504 468 214 . . . . 75 . . . . 20 . . . . 594 . Maximum Alert Level 3 | . . 3 2 1 . . . . 1 . . . . . . . . . 3 . Low Security (%) 49 | 100 100 4 . 41 . . . . 90 . . . . 100 . . . . . . Level 1 21 | . . 38 28 58 . . . . 9 . . . . . . . . . 10 . Level 2 21 | . . 30 71 . . . . . . . . . . . . . . . 68 . Level 3 7 | . . 26 . . . . . . . . . . . . . . . . 20 . Level 4 . | . . . . . . . . . . . . . . . . . . . . . Level 5 . | . . . . . . . . . . . . . . . . . . . . . High Security . | . . . . . . . . . . . . . . . . . . . . . Max Security . | . . . . . . . . . . . . . . . . . . . . . Squads Dispatched 23 | . 4 5 . 4 . . . . 3 . . . . 2 . . . . 5 . Investigation 5 | . 2 3 . . . . . . . . . . . . . . . . . . Extermination 8 | . . . . 1 . . . . 3 . . . . 2 . . . . 2 . Reinforcement 8 | . 2 2 . 1 . . . . . . . . . . . . . . 3 . Assault . | . . . . . . . . . . . . . . . . . . . . . Garrison 2 | . . . . 2 . . . . . . . . . . . . . . . . Intercept . | . . . . . . . . . . . . . . . . . . . . . Searches Triggered 3 | . . . . . . . . . . . . . . . . . . . 3 . Construction Impeded 2 | . . . . . . . . . . . . . . . . . . . 2 . Haulers Reinforced . | . . . . . . . . . . . . . . . . . . . . . Active Scanning Responses . | . . . . . . . . . . . . . . . . . . . . . Cargo Convoy Interrupts . | . . . . . . . . . . . . . . . . . . . . . Stealth | -11 -10 -9 -8 -7 -7 -7 -7 -6 -6 -6 -6 -6 -5 -5 -5 -5 -5 -4 -4 -4 --------- Run | Yrd Mat Mat Mat Fac Low Low Zio Pro Fac Low Low Dat Pro Fac Upp Upp War Pro Fac Upp Distress Signals 12 | . 1 4 . 3 . . . . 2 . . . . 1 . . . . 1 . Communications Jammed . | . . . . . . . . . . . . . . . . . . . . . Distress Signals . | . . . . . . . . . . . . . . . . . . . . . Times Spotted 266 | . 22 58 20 20 11 7 . 2 27 4 11 . 5 10 6 8 12 6 34 3 Peak Tracking Total 12 | . 3 7 5 5 4 5 . 1 3 4 7 . 3 2 3 4 12 2 10 3 Tactical Retreats 24 | . 1 2 1 3 . 2 . . . . . . 2 . 3 3 1 1 5 . Traps | -11 -10 -9 -8 -7 -7 -7 -7 -6 -6 -6 -6 -6 -5 -5 -5 -5 -5 -4 -4 -4 ------- Run | Yrd Mat Mat Mat Fac Low Low Zio Pro Fac Low Low Dat Pro Fac Upp Upp War Pro Fac Upp Traps Triggered 7 | . 3 2 . . 1 . . . 1 . . . . . . . . . . . Indirectly . | . . . . . . . . . . . . . . . . . . . . . Trap Hack Attempts . | . . . . . . . . . . . . . . . . . . . . . Triggered . | . . . . . . . . . . . . . . . . . . . . . Disarmed . | . . . . . . . . . . . . . . . . . . . . . Reprogrammed . | . . . . . . . . . . . . . . . . . . . . . Reused . | . . . . . . . . . . . . . . . . . . . . . Traps Extracted . | . . . . . . . . . . . . . . . . . . . . . Installed . | . . . . . . . . . . . . . . . . . . . . . Triggered 13 | . . . . . . . . . . . . . . . . . 13 . . . Machines | -11 -10 -9 -8 -7 -7 -7 -7 -6 -6 -6 -6 -6 -5 -5 -5 -5 -5 -4 -4 -4 ---------- Run | Yrd Mat Mat Mat Fac Low Low Zio Pro Fac Low Low Dat Pro Fac Upp Upp War Pro Fac Upp Machines Disabled 19 | . 1 4 2 1 . 1 . . 8 . . . . . . . . . 2 . Max in Single Turn 2 | . 1 2 1 1 . 1 . . 1 . . . . . . . . . 1 . Garrison Access 1 | . . . . 1 . . . . . . . . . . . . . . . . Machines Repaired . | . . . . . . . . . . . . . . . . . . . . . Machines Dismantled . | . . . . . . . . . . . . . . . . . . . . . Machines Sabotaged . | . . . . . . . . . . . . . . . . . . . . . Overloaded Fab Kills . | . . . . . . . . . . . . . . . . . . . . . Hacking | -11 -10 -9 -8 -7 -7 -7 -7 -6 -6 -6 -6 -6 -5 -5 -5 -5 -5 -4 -4 -4 --------- Run | Yrd Mat Mat Mat Fac Low Low Zio Pro Fac Low Low Dat Pro Fac Upp Upp War Pro Fac Upp Machines Accessed 63 | . 9 15 6 10 . 1 . . 9 . . 4 . 5 1 . 1 . 2 . Terminals 40 | . 7 10 5 6 . . . . 7 . . . . 4 . . . . 1 . Fabricators 1 | . . . . 1 . . . . . . . . . . . . . . . . Repair Stations 7 | . 1 2 . 1 . . . . 1 . . . . 1 . . . . 1 . Recycling Units 4 | . 1 1 1 1 . . . . . . . . . . . . . . . . Scanalyzers 2 | . . 2 . . . . . . . . . . . . . . . . . . Garrison Access 2 | . . . . 1 . . . . 1 . . . . . . . . . . . Total Hacks 178 | . 25 40 17 30 . 1 . . 19 . . 26 . 14 1 . 1 . 4 . Successful 115 | . 18 22 9 17 . 1 . . 10 . . 26 . 8 1 . 1 . 2 . Failed 63 | . 7 18 8 13 . . . . 9 . . . . 6 . . . . 2 . Catastrophic 6 | . . 4 . . . . . . 2 . . . . . . . . . . . Database Lockouts . | . . . . . . . . . . . . . . . . . . . . . Manual 79 | . 13 21 14 10 . . . . 12 . . . . 6 . . 1 . 2 . Terminals 110 | . 19 26 16 23 . . . . 13 . . . . 11 . . . . 2 . Fabricators 1 | . . . . 1 . . . . . . . . . . . . . . . . Repair Stations 23 | . 5 6 . 2 . . . . 5 . . . . 3 . . . . 2 . Recycling Units 7 | . 1 2 1 3 . . . . . . . . . . . . . . . . Scanalyzers 6 | . . 6 . . . . . . . . . . . . . . . . . . Garrison Access 2 | . . . . 1 . . . . 1 . . . . . . . . . . . Terminal Hacks 57 | . 7 4 4 8 . 1 . . 1 . . 26 . 4 1 . 1 . . . Record 9 | . . . . . . . . . . . . 9 . . . . . . . . Part Schematic 10 | . . . . 1 . . . . . . . 9 . . . . . . . . Robot Schematic 6 | . . . . 1 . . . . . . . 5 . . . . . . . . Robot Analysis 3 | . 2 1 . . . . . . . . . . . . . . . . . . Prototype ID Bank 9 | . 2 2 2 . . . . . . . . 3 . . . . . . . . Open Door 4 | . . . . . . 1 . . 1 . . . . . 1 . 1 . . . Open DSF 1 | . . . . 1 . . . . . . . . . . . . . . . . Level Access Points 3 | . . 1 1 1 . . . . . . . . . . . . . . . . Branch Access Points 3 | . 1 . . 1 . . . . . . . . . 1 . . . . . . Unreport Threat 3 | . 1 . . 1 . . . . . . . . . 1 . . . . . . Locate Traps 3 | . 1 . . 1 . . . . . . . . . 1 . . . . . . Registered Prototypes 1 | . . . . 1 . . . . . . . . . . . . . . . . Zone Layout 2 | . . . 1 . . . . . . . . . . 1 . . . . . . Fabricator Hacks . | . . . . . . . . . . . . . . . . . . . . . Repair Station Hacks 17 | . 4 4 . 2 . . . . 3 . . . . 2 . . . . 2 . Scan Component 9 | . 2 2 . 1 . . . . 2 . . . . 1 . . . . 1 . Repair 8 | . 2 2 . 1 . . . . 1 . . . . 1 . . . . 1 . Recycling Unit Hacks 5 | . 1 1 1 2 . . . . . . . . . . . . . . . . Report Inventory 4 | . 1 1 1 1 . . . . . . . . . . . . . . . . Retrieve Components 1 | . . . . 1 . . . . . . . . . . . . . . . . Scanalyzer 6 | . . 6 . . . . . . . . . . . . . . . . . . Insert Component 3 | . . 3 . . . . . . . . . . . . . . . . . . Analyze 3 | . . 3 . . . . . . . . . . . . . . . . . . Garrison Access Hacks 1 | . . . . 1 . . . . . . . . . . . . . . . . Seal Access 1 | . . . . 1 . . . . . . . . . . . . . . . . Unauthorized Hacks 29 | . 6 7 4 4 . . . . 6 . . . . 2 . . . . . . Terminals 29 | . 6 7 4 4 . . . . 6 . . . . 2 . . . . . . Assimilate 1 | . . . . . . . . . 1 . . . . . . . . . . . Botnet 28 | . 6 7 4 4 . . . . 5 . . . . 2 . . . . . . Fabricators . | . . . . . . . . . . . . . . . . . . . . . Repair Stations . | . . . . . . . . . . . . . . . . . . . . . Recycling Units . | . . . . . . . . . . . . . . . . . . . . . Scanalyzers . | . . . . . . . . . . . . . . . . . . . . . Garrison Access . | . . . . . . . . . . . . . . . . . . . . . Data Cores Recovered 3 | . . 1 . . . . . . 2 . . . . . . . . . . . Used . | . . . . . . . . . . . . . . . . . . . . . Hacking Detections 43 | . 4 12 5 8 . . . . 8 . . . . 5 . . . . 1 . Full Trace Events 2 | . 1 1 . . . . . . . . . . . . . . . . . . Feedback Events . | . . . . . . . . . . . . . . . . . . . . . Feedback Blocked . | . . . . . . . . . . . . . . . . . . . . . Robot Schematics Acquired 6 | . . . . 1 . . . . . . . 5 . . . . . . . . Robots Built . | . . . . . . . . . . . . . . . . . . . . . Authchips . | . . . . . . . . . . . . . . . . . . . . . Time . | . . . . . . . . . . . . . . . . . . . . . Total Robot Build Rating . | . . . . . . . . . . . . . . . . . . . . . Part Schematics Acquired 13 | . . 3 . 1 . . . . . . . 9 . . . . . . . . Parts Built . | . . . . . . . . . . . . . . . . . . . . . Authchips . | . . . . . . . . . . . . . . . . . . . . . Time . | . . . . . . . . . . . . . . . . . . . . . Total Part Build Rating . | . . . . . . . . . . . . . . . . . . . . . Parts Repaired 8 | . 2 2 . 1 . . . . 1 . . . . 1 . . . . 1 . Time 323 | . 52 77 . 38 . . . . 22 . . . . 26 . . . . 108 . Parts Recycled . | . . . . . . . . . . . . . . . . . . . . . Recycled Matter . | . . . . . . . . . . . . . . . . . . . . . Retrieved Matter . | . . . . . . . . . . . . . . . . . . . . . Retrieved Components 1 | . . . . 1 . . . . . . . . . . . . . . . . Parts Scanalyzed 3 | . . 3 . . . . . . . . . . . . . . . . . . Part Schematics Acquired 3 | . . 3 . . . . . . . . . . . . . . . . . . Parts Damaged . | . . . . . . . . . . . . . . . . . . . . . Bothacking | -11 -10 -9 -8 -7 -7 -7 -7 -6 -6 -6 -6 -6 -5 -5 -5 -5 -5 -4 -4 -4 ------------ Run | Yrd Mat Mat Mat Fac Low Low Zio Pro Fac Low Low Dat Pro Fac Upp Upp War Pro Fac Upp Used RIF Installer . | . . . . . . . . . . . . . . . . . . . . . Robots Hacked . | . . . . . . . . . . . . . . . . . . . . . Non-combat . | . . . . . . . . . . . . . . . . . . . . . Combat . | . . . . . . . . . . . . . . . . . . . . . Robot Hacks Applied . | . . . . . . . . . . . . . . . . . . . . . Relay Couplers Released 3 | . . . . . . . . . 3 . . . . . . . . . . . Programmers 3 | . . . . . . . . . 3 . . . . . . . . . . . Fabnet Peak Effective % . | . . . . . . . . . . . . . . . . . . . . . Robots Rewired . | . . . . . . . . . . . . . . . . . . . . . Allies Hacked . | . . . . . . . . . . . . . . . . . . . . . Hacks Repelled . | . . . . . . . . . . . . . . . . . . . . . Allies | -11 -10 -9 -8 -7 -7 -7 -7 -6 -6 -6 -6 -6 -5 -5 -5 -5 -5 -4 -4 -4 -------- Run | Yrd Mat Mat Mat Fac Low Low Zio Pro Fac Low Low Dat Pro Fac Upp Upp War Pro Fac Upp Total Allies 3 | . . . . . . . 2 . 1 . . . . . . . . . . . Largest Group 2 | . . . . . . . 2 2 2 1 . . . . . . . . . . Highest-Rated Group 76 | . . . . . . . 76 76 76 10 . . . . . . . . . . Highest-Rated Ally 51 | . . . . . . . 51 51 51 10 . . . . . . . . . . Total Orders 4 | . . . . . . . . . 2 . . . . . . . 2 . . . EXPLORE 1 | . . . . . . . . . . . . . . . . . 1 . . . RETURN 3 | . . . . . . . . . 2 . . . . . . . 1 . . . Ally Attacks 16 | . . . . . . . . 5 11 . . . . . . . . . . . Total Damage 600 | . . . . . . . . 125 475 . . . . . . . . . . . Kills 7 | . . . . . . . . 1 6 . . . . . . . . . . . Allies Corrupted . | . . . . . . . . . . . . . . . . . . . . . Allies Melted . | . . . . . . . . . . . . . . . . . . . . . Intel | -11 -10 -9 -8 -7 -7 -7 -7 -6 -6 -6 -6 -6 -5 -5 -5 -5 -5 -4 -4 -4 ------- Run | Yrd Mat Mat Mat Fac Low Low Zio Pro Fac Low Low Dat Pro Fac Upp Upp War Pro Fac Upp Robot Analysis Total 3 | . 2 1 . . . . . . . . . . . . . . . . . . Derelict Logs Recovered 13 | . . . . . 1 2 1 1 . 2 1 . 1 . 1 2 . 1 . . Drone Launches 3 | . . . . . . . . . 2 . . . . . . . 1 . . . Drone Recoveries 2 | . . . . . . . . . 2 . . . . . . . . . . . Decoded 0b10 Intel 172 | . . . . . . . . . 132 . . . . 25 . . . . 15 . Traps 7 | . . . . . . . . . . . . . . 5 . . . . 2 . Emergency Access 4 | . . . . . . . . . . . . . . 4 . . . . . . Items 158 | . . . . . . . . . 132 . . . . 14 . . . . 12 . Patrols 3 | . . . . . . . . . . . . . . 2 . . . . 1 . Exploration | -11 -10 -9 -8 -7 -7 -7 -7 -6 -6 -6 -6 -6 -5 -5 -5 -5 -5 -4 -4 -4 ------------- Run | Yrd Mat Mat Mat Fac Low Low Zio Pro Fac Low Low Dat Pro Fac Upp Upp War Pro Fac Upp Turns Passed 19237 | 122 1074 2360 1188 1107 778 580 1123 371 2484 736 705 94 916 1108 1115 1071 731 672 893 9 Spaces Moved 12926 | 60 667 1298 789 705 595 437 919 295 1711 594 418 79 718 740 795 636 368 584 518 . Core 256 | 6 . . . 24 . . . . . . . . . . . . . . 226 . Treads 65 | . . . . . . . . . . . . . . . . . . . 65 . Legs 12323 | 54 667 1298 789 436 595 437 919 295 1711 594 418 79 718 740 795 636 368 584 190 . Wheels 282 | . . . . 245 . . . . . . . . . . . . . . 37 . Hover . | . . . . . . . . . . . . . . . . . . . . . Flight . | . . . . . . . . . . . . . . . . . . . . . Fastest Speed 50 | 50 120 120 120 95 120 120 120 120 120 120 120 120 120 112 112 112 105 105 50 . Average Speed 118 | 124 121 126 120 118 120 120 120 120 120 120 120 120 120 119 112 112 108 105 108 . Slowest Speed 300 | 200 190 190 190 200 120 120 120 120 120 120 120 120 120 120 112 112 112 105 300 . Overloaded Moves . | . . . . . . . . . . . . . . . . . . . . . Propulsion Burnouts . | . . . . . . . . . . . . . . . . . . . . . Robots Hopped . | . . . . . . . . . . . . . . . . . . . . . Cave-ins Triggered . | . . . . . . . . . . . . . . . . . . . . . Exploration Rate (%) 54 | 4 99 100 45 20 82 63 87 51 36 74 46 69 69 15 76 67 66 63 17 1 Regions Visited 20 Branch Regions 13 Pre-discovered Areas 3 | . . . . . . 2 . . . . . 1 . . . . . . . . Known Exits Taken 16 | . . 1 1 1 1 1 1 1 1 1 1 1 1 1 . 1 . 1 1 . Unknown Exits Taken 4 | 1 1 . . . . . . . . . . . . . 1 . 1 . . . Scrap Searched 20 | . . . . . 1 1 2 3 . 3 2 . 1 . 2 2 . 3 . . Spaces Dug 28 | . . . 9 3 4 . . . 1 . . . . 2 . 3 . . 6 . Terrain Destroyed 349 | . 14 55 9 3 37 1 . . 10 25 92 . 11 2 2 3 . 10 75 . Melee 21 | . . . 9 . . . . . 1 . . . . 2 . 3 . . 6 . Projectile 97 | . . . . . . 1 . . 9 1 5 . . . 2 . . 10 69 . AOE 231 | . 14 55 . 3 37 . . . . 24 87 . 11 . . . . . . . Terrain Rammed . | . . . . . . . . . . . . . . . . . . . . . Walls Destroyed . | . . . . . . . . . . . . . . . . . . . . . Machines Disabled . | . . . . . . . . . . . . . . . . . . . . . Actions | -11 -10 -9 -8 -7 -7 -7 -7 -6 -6 -6 -6 -6 -5 -5 -5 -5 -5 -4 -4 -4 --------- Run | Yrd Mat Mat Mat Fac Low Low Zio Pro Fac Low Low Dat Pro Fac Upp Upp War Pro Fac Upp Total 15763 | 81 848 1761 898 874 625 473 941 301 2004 607 572 78 745 925 979 988 703 615 735 10 Wait 1832 | . 97 230 14 74 6 18 4 . 185 6 117 . 11 122 157 345 304 13 124 5 Move 12906 | 59 666 1297 788 704 594 436 918 294 1710 593 417 78 717 739 794 635 367 583 517 . Hop . | . . . . . . . . . . . . . . . . . . . . . Pick Up 94 | 3 15 20 6 4 2 4 5 1 9 1 . . 2 10 2 1 3 2 4 . Fast Attach 83 | 7 2 12 3 10 . 1 4 . 7 . 2 . . 13 . . 11 1 10 . Attach 55 | . . 4 6 7 2 2 . . 7 1 4 . . 3 4 . 1 1 12 1 Detach 23 | . . 3 1 4 . . . . 2 . . . . 3 . . 7 . 2 1 Swap 86 | 1 9 34 6 5 4 3 1 . 9 1 1 . . 4 1 3 1 1 2 . Drop 101 | . 12 30 6 4 . . 9 1 9 . . . . 9 2 . 9 2 6 2 Fire 501 | 11 44 127 51 41 17 7 . 5 61 4 31 . 15 17 19 . . 12 38 1 Melee 51 | . . . 10 17 . 1 . . 1 . . . . 2 . 3 . . 17 . Ram 3 | . . . . 2 . . . . . . . . . . . . . . 1 . Kick 23 | . 3 3 7 2 . . . . 4 . . . . 3 . . . . 1 . Crush 1 | . . . . . . . . . . . . . . . . . . . 1 . Escape Stasis . | . . . . . . . . . . . . . . . . . . . . . Rewire 4 | . . 1 . . . 1 . . . 1 . . . . . 1 . . . . Trap . | . . . . . . . . . . . . . . . . . . . . . Miscellaneous . | . . . . . . . . . . . . . . . . . . . . . Route ------- -11/Scrapyard -10/Materials (discovered 4 exits: *Mat x3 / *Min) -9/Materials (discovered 7 exits: *Mat x3 / [*Min x2] / [*Sto x2]) -8/Materials (discovered 3 exits: *Fac x3) -7/Factory (discovered 6 exits: *Fac x4 / *Low x2) -7/Lower Caves -7/Lower Caves -7/Zion -6/Proximity Caves -6/Factory (discovered 5 exits: *Fac x2 / *Low / *Ext x2) -6/Lower Caves -6/Lower Caves (discovered 2 exits: Fac / *Dat) -6/Data Miner -5/Proximity Caves -5/Factory (discovered 3 exits: Fac / *Upp x2) -5/Upper Caves -5/Upper Caves -5/Warlord -4/Proximity Caves -4/Factory -4/Upper Caves History --------- Turn | Location | Event 18 | -11/Scrapyard | Discovered new exit (range 16) 123 | -11/Scrapyard | Entered Materials 314 | -10/Materials | Build established: Mutant 344 | -10/Materials | Identified exit to Mines 378 | -10/Materials | Discovered new exit (range 9) 535 | -10/Materials | Repaired Assault Rifle 563 | -10/Materials | Repaired Ion Engine 662 | -10/Materials | Discovered new exit (range 10) 734 | -10/Materials | Discovered new exit (range 15) 1197 | -10/Materials | Entered another Materials area 1197 | -9/Materials | Evolved 2 slots: Propulsion x1, Utility x1 1346 | -9/Materials | Repaired Ion Engine 1690 | -9/Materials | Lost 3 parts (1u2w) 1709 | -9/Materials | Build established: Scavenger-Mutant 1907 | -9/Materials | Identified exit to Materials 2235 | -9/Materials | Build established: Mutant 2749 | -9/Materials | Discovered new exit (range 13) 2750 | -9/Materials | Build established: Scavenger-Mutant 2896 | -9/Materials | Discovered new exit (range 9) 2990 | -9/Materials | Discovered new exit (range 10) 3093 | -9/Materials | Repaired Imp. Assault Rifle 3125 | -9/Materials | Discovered new exit (range 13) 3258 | -9/Materials | Build established: Mutant 3557 | -9/Materials | Entered another Materials area 3557 | -8/Materials | Evolved 2 slots: Utility x1, Weapon x1 3619 | -8/Materials | Identified exit to Factory 4536 | -8/Materials | Build established: Tank 4745 | -8/Materials | Entered Factory 4745 | -7/Factory | Evolved 2 slots: Utility x2 4770 | -7/Factory | Identified exit to Factory 4887 | -7/Factory | Identified exit to DSF 5049 | -7/Factory | Build established: Hacker-Tank 5185 | -7/Factory | Repaired Carbon-fiber Leg 5220 | -7/Factory | Garrison activated, responded to threat 5323 | -7/Factory | Lost 5 parts (3n1u1w) 5564 | -7/Factory | Identified exit to Lower Caves 5852 | -7/Factory | Entered Lower Caves 5940 | -7/Lower Caves | Learned 12 Factory zone layouts 6337 | -7/Lower Caves | Encountered a Warlord checkpoint 6567 | -7/Lower Caves | Discovered new exit (range 15) 6585 | -7/Lower Caves | Identified exit to Lower Caves 6630 | -7/Lower Caves | Entered another Lower Caves area 6644 | -7/Lower Caves | Attacked by a delusional Derelict stockpiling parts 7002 | -7/Lower Caves | Learned location of Zion (-7) 7093 | -7/Lower Caves | Learned location of Extension (-6) 7184 | -7/Lower Caves | Discovered new exit (range 8) 7192 | -7/Lower Caves | Identified exit to Zion 7210 | -7/Lower Caves | Entered Zion 7267 | -7/Zion | System corruption cleaned by Quarantine Array 7360 | -7/Zion | Discovered new exit (range 12) 7489 | -7/Zion | Learned Factory terminal intel 7514 | -7/Zion | Found Prototype Device 7514 | -7/Zion | Identified Phasing AFG 7532 | -7/Zion | Found Prototype Special Weapon 7532 | -7/Zion | Identified RU-N14's Throwing Claymores 7753 | -7/Zion | Gained Derelict followers 7822 | -7/Zion | Build established: Hacker-Gunner 7831 | -7/Zion | Given the Hacking Drone Bay 7834 | -7/Zion | Found Prototype Device 7834 | -7/Zion | Identified Hacking Drone Bay 7926 | -7/Zion | Met Imprinter 8234 | -7/Zion | Build established: Hacker-Tank 8328 | -7/Zion | Identified exit to Proximity Caves 8333 | -7/Zion | Entered Proximity Caves 8333 | -6/Proximity Caves | Accompanied by 2 allies 8461 | -6/Proximity Caves | Learned Factory stockpile data 8532 | -6/Proximity Caves | Attracted the attention of an 0b10 checkpoint 8686 | -6/Proximity Caves | Discovered exit to Factory (range 15) 8704 | -6/Proximity Caves | Entered Factory 8704 | -6/Factory | Accompanied by 2 allies 8704 | -6/Factory | Evolved 2 slots: Propulsion x1, Utility x1 8705 | -6/Factory | Identified exit to Extension 8705 | -6/Factory | Identified exit to Lower Caves 8707 | -6/Factory | Loaded intel: 27 terminal locations 8907 | -6/Factory | Repaired Imp. Carbon-fiber Leg 9255 | -6/Factory | Lost 4 parts (1p1n1u1w) 9429 | -6/Factory | Discovered new exit (range 7) 9435 | -6/Factory | Identified exit to Factory 9522 | -6/Factory | Build established: Hacker-Mutant 9758 | -6/Factory | Discovered exit to Factory (range 4) 9992 | -6/Factory | Build established: Hacker-Skirmisher 10871 | -6/Factory | Discovered exit to Extension (range 6) 11188 | -6/Factory | Entered Lower Caves 11188 | -6/Lower Caves | Accompanied by 1 ally 11630 | -6/Lower Caves | Discovered new exit (range 5) 11635 | -6/Lower Caves | Identified exit to Lower Caves 11850 | -6/Lower Caves | Learned Factory terminal intel 11924 | -6/Lower Caves | Entered another Lower Caves area 12284 | -6/Lower Caves | Attracted the attention of an 0b10 base 12311 | -6/Lower Caves | System corruption reached 10% 12353 | -6/Lower Caves | Destroyed 8 combat bots 12363 | -6/Lower Caves | Lost 7 parts (4u3w) 12578 | -6/Lower Caves | Build established: Mutant 12597 | -6/Lower Caves | Discovered new exit (range 5) 12601 | -6/Lower Caves | Identified exit to Data Miner 12629 | -6/Lower Caves | Entered Data Miner 12629 | -6/Data Miner | Discovered new exit (range 6) 12634 | -6/Data Miner | Identified exit to Proximity Caves 12652 | -6/Data Miner | Met Data Miner 12676 | -6/Data Miner | Learned location of Section 7 (-2) 12676 | -6/Data Miner | Acquired the access code to Warlord's prototype stash 12697 | -6/Data Miner | Received God Mode back door access code from Data Miner 12723 | -6/Data Miner | Entered Proximity Caves 12786 | -5/Proximity Caves | Learned location of 1 exit from Factory 13467 | -5/Proximity Caves | Spotted B-75 Beast 13629 | -5/Proximity Caves | Discovered exit to Factory (range 11) 13639 | -5/Proximity Caves | Entered Factory 13639 | -5/Factory | Evolved 2 slots: Utility x2 13640 | -5/Factory | Identified exit to Upper Caves 13641 | -5/Factory | Identified exit to Factory 13642 | -5/Factory | Loaded intel: 26 terminal locations 13873 | -5/Factory | Repaired Lrg. Storage Unit 14126 | -5/Factory | Build established: Tank 14747 | -5/Factory | Entered Upper Caves 14817 | -5/Upper Caves | Attracted the attention of an 0b10 checkpoint 15023 | -5/Upper Caves | Build established: Skirmisher 15839 | -5/Upper Caves | Lost 3 parts (1p1u1w) 15859 | -5/Upper Caves | Discovered new exit (range 4) 15862 | -5/Upper Caves | Entered another Upper Caves area 15863 | -5/Upper Caves | Identified exit to Warlord 15883 | -5/Upper Caves | Learned 8 Factory zone layouts 15902 | -5/Upper Caves | Learned Factory emergency access door positions 16927 | -5/Upper Caves | Attracted the attention of an 0b10 checkpoint 16933 | -5/Upper Caves | Entered Warlord 16992 | -5/Warlord | System corruption cleaned by Quarantine Array 17108 | -5/Warlord | Met Warlord 17124 | -5/Warlord | Opened Warlord's prototype stash 17132 | -5/Warlord | Found Prototype Processor 17132 | -5/Warlord | Identified Exp. Target Analyzer 17133 | -5/Warlord | Warlord's base attacked by MAIN.C 17138 | -5/Warlord | Found Prototype Hackware 17138 | -5/Warlord | Identified System Mapper 17149 | -5/Warlord | Found Prototype Processor 17155 | -5/Warlord | Found Prototype Reactor 17161 | -5/Warlord | Found Prototype Device 17161 | -5/Warlord | Identified System Purifier 17410 | -5/Warlord | Build established: Hacker-Gunner 17483 | -5/Warlord | Warlord forces counterattacked 17588 | -5/Warlord | Opened side exit 17634 | -5/Warlord | Spotted Striker 17657 | -5/Warlord | Discovered new exit (range 8) 17664 | -5/Warlord | Entered Proximity Caves 17677 | -4/Proximity Caves | Lost 10 allies 17770 | -4/Proximity Caves | Spotter reported a threat 17785 | -4/Proximity Caves | Spotter reported a threat 17840 | -4/Proximity Caves | Spotted B-86 Titan 18055 | -4/Proximity Caves | Spotter reported a threat 18175 | -4/Proximity Caves | Identified Exp. Targeting Computer 18286 | -4/Proximity Caves | Destroyed B-86 Titan 18308 | -4/Proximity Caves | Spotter reported a threat 18326 | -4/Proximity Caves | Learned 12 Research zone layouts 18329 | -4/Proximity Caves | Discovered exit to Factory (range 8) 18336 | -4/Proximity Caves | Entered Factory 18336 | -4/Factory | Evolved 2 slots: Power x1, Weapon x1 18338 | -4/Factory | Identified Vortex Chain Reactor 18626 | -4/Factory | Search patrols dispatched 18668 | -4/Factory | Repaired Helical Railgun? 18836 | -4/Factory | Search patrols dispatched 18867 | -4/Factory | Lost 4 parts (2n2w) 18918 | -4/Factory | Core integrity fell below 50% 18950 | -4/Factory | Lost 11 parts (1p4n3u3w) 18966 | -4/Factory | Core integrity fell below 20% 19086 | -4/Factory | Search patrols dispatched 19182 | -4/Factory | Discovered new exit (range 5) 19188 | -4/Factory | Identified exit to Upper Caves 19192 | -4/Factory | Build established: Mutant 19229 | -4/Factory | Entered Upper Caves 19238 | -4/Upper Caves | Destroyed by G-67 Veteran with Plasma Rifle Last Messages --------------- 19097_ O-24 Administrator: "IFF HANDSHAKE FAILED. SECURING TERMINAL." 19099_ O-24 Administrator uses terminal to summon reinforcements. 19099_ ALERT: Hostiles spotted, dispatching reinforcements to Terminal F018. 19099_ O-24 Administrator locks terminal. 19115_ Acquired Antimatter Reactor. 19132_ Acquired Adv. Medium Treads. 19152_ Acquired Magnetic Acceleration Cannon. 19175_ Slammed into T-07 Excavator. 19182_ EXIT=FOUND 19188_ EXIT=IDENTIFIED: UPPER CAVES 19211_ ALERT: Rogue bot located, Programmers report to Factory Zone 5B. LOCATION=UPPER CAVES GOAL=ESCAPE 19230_ G-73 Enforcer knocked back. 19232_ Adv. Terrain Scanner destroyed. 19235_ Dropped Adv. Medium Treads. 19235_ Imp. Targeting Computer destroyed. 19237_ Dropped Imp. Energy Mantle. 19238_ Adv. Signal Interpreter destroyed. Map ----- +----------------------------------------------------+ | ?????????????????????????????????????????????????? | | ?????????????????????????????????????????????????? | | ?????????????????????????????????????????????????? | | ?????????????????????????????????????????????????? | | ?????????????????????????????????????????????????? | | ?????????????????????????????????????????????????? | | ?????????????????????????????????????????????????? | | ?????????????????????????????????????????????????? | | ?????????????????????????????????????????????????? | | ?????????????????????????????????????????????????? | | ?????????????????????????????????????????????????? | | ?????????????????????????????????????????????????? | | ?????????????????????????????????????????????????? | | ?????????????????????????????????????????????????? | | ?????????????????????????????????????????????????? | | ?????????????????????????????????????????????????? | | ?????????????????????????????????????????????????? | | ?????????????????????????????????????????????????? | | ?????????????????????????????????????????????????? | | ?????????????????????????????????????????????????? | | ???????????????????#??###????????????????????????? | | ???????????????????? ## ##??????????????????????? | | ????????????????????? ##?????????????????????? | | ?????????????????????? % g #?????????????????????? | | ???????????????????????# ##????????????????????? | | ???????????????????????# @ #????????????????????? | | ????????????????????# g ! g #??????????????????? | | ????????????????????##### #?????????????????? | | ????????????????????????## #?????????????????? | | ??????????????????????????## ##?????????????????? | | ????????????????????????????###??????????????????? | | ?????????????????????????????????????????????????? | | ?????????????????????????????????????????????????? | | ?????????????????????????????????????????????????? | | ?????????????????????????????????????????????????? | | ?????????????????????????????????????????????????? | | ?????????????????????#???????????????????????????? | | ?????????????????????????????????????????????????? | | ?????????????????????????????????????????????????? | | ???????????#?????????????????????????????????????? | | ?????????????????????????????????????????????????? | | ?????????????????????????????????????????????????? | | ?????????????????????????????????????????????????? | | ?????????????????????????????????????????????????? | | ?????????????????????????????????????????????????? | | ?????????????????????????????????????????????????? | | ?????????????????????????????????????????????????? | | ?????????????????????????????????????????????????? | | ?????????????????????????????????????????????????? | | ?????????????????????????????????????????????????? | +----------------------------------------------------+ Best States ------------- Heat Dissipation 43 Energy Generation 55 Energy Capacity 700 Matter Stores 300 Matter Capacity 300 Sight Range 20 Robot Scan Range 16 Terrain Scan Range 20 Terrain Scan Density 10 Additional Mass Support 9 Armor Coverage 225 Resistance: KI 30 Resistance: TH 20 Propulsion Shielding 66 Utility Shielding 66 Evasion (%) 55 Targeting Accuracy 26 Target Analysis 10 Armor Integrity Analysis 30 Recoil Reduction 1 Matter Filtering 50 Kinecelleration 40 Offensive Hacking 31 Item Schematics ----------------- Grenade Launcher | -9/Materials | Scanalyzed Imp. Aluminum Leg | -9/Materials | Scanalyzed Imp. Assault Rifle | -9/Materials | Scanalyzed Mass Driver | -7/Factory | Hacked Combat Drone Bay | -6/Data Miner | Free Lgt. Regenerative Plating | -6/Data Miner | Free Cld. Nuclear Pulse Thruster | -6/Data Miner | Free Imp. Matter Compressor | -6/Data Miner | Free Kinetic Spear | -6/Data Miner | Free Field Propulsion Array | -6/Data Miner | Free Point Defense Array | -6/Data Miner | Free Adv. Concussive RPG | -6/Data Miner | Free Imp. Dynamic Insulation System | -6/Data Miner | Free Robot Schematics ------------------ G-47 Trooper | -7/Factory | Hacked Y-54 Guardian | -6/Data Miner | Free S-27 Virus | -6/Data Miner | Free B-60 Warrior | -6/Data Miner | Free R-10 Processor | -6/Data Miner | Free H-66 Slayer | -6/Data Miner | Free Fabricated ------------ Nothing Alien Tech Used ----------------- None Achievements -------------- Charge!!! Novice Programmer Prolific Hacker Reappropriation Challenges ------------ None Game ------ Seed AerolevRelayArchive Manual? 0 Play Time 03:56:52 Cumulative 98.0 hours Start 2024.09.09 @ 11:50:28 End 2024.09.09 @ 18:15:18 Sessions 1 Manual Loads 0 Difficulty Rogue Special Mode None Game No. 75 Rogue 75 Adventurer 0 Explorer 0 Win Type - Total 2 Types 2/0/0/0/0/0/0/0/0 Lore% 20 Gallery% 46 Achievement% 44 Wizard Run 0 Options --------- Layout 0 ASCII 0 Keyboard 1 Movement Numpad Keybinds 0 Fullscreen 2 Font 18/SmallcapsGlow Map View 76x50 Zoom Use 0% Tactical HUD 1 Map Filters NONE Filters NONE Steam 1 RUN: 8c6b4a2b-1575-4f48-aaaf-98db77668d4c